Cogmind - Beta 16 @@@ ROGUE MODE // 2025.11.20 @ 02:18:47 Player: puppuppit Result: Destroyed by G-34 Mercenary with Small Laser Performance ------------- Evolutions (1) 500 Regions Visited (5) 1000 Robots Destroyed (155) 775 Value Destroyed (4986) 4986 Prototype IDs (7) 140 Alien Tech Used (0) 0 Bonus (1136) 1136 TOTAL SCORE: 8537 Bonus ------- High Alert Combat Kills 693 Follower Combat Kills 243 Entered Garrisons 200 Cogmind --------- Core Integrity 0/400 Matter 264/300 Energy 150/150 System Corruption 4% Temperature Cool (14) Movement Treading (160) Location -9/Garrison Parts ------- > --- POWER (1) -------- Micro Nuclear Core > --- PROPULSION (2) --- Light Treads Light Treads > --- UTILITY (4) ------ Large Storage Unit Improved Targeting Computer Hacking Suite Hacking Suite > --- WEAPON (2) ------- Assault Cannon Rocket Launcher > --- INVENTORY (15) --- Light Treads Light Treads Light Treads Gravmag System Gravmag System High-capacity Matter Pod (200) High-capacity Matter Pod (200) Improved Targeting Computer Recoil Stabilizer Insulated Plating Assault Cannon Assault Cannon Assault Cannon Slug Cannon Rocket Launcher Peak State ------------ > --- POWER ------------ Light Nuclear Core > --- PROPULSION ------- Light Treads Advanced Treads > --- UTILITY ---------- Large Storage Unit Targeting Computer Decoy Drone Bay > --- WEAPON ----------- Assault Rifle Light Assault Rifle > --- INVENTORY -------- Light Treads Cooling System Cooling System High-capacity Matter Pod High-capacity Matter Pod Recoil Stabilizer Reaction Control System Insulated Plating System Shield Light Assault Rifle Light Cannon Slug Cannon Grenade Launcher [Rating: 27] Favorites ----------- Power Light Nuclear Core Engine Light Ion Engine Power Core Light Nuclear Core Propulsion Light Treads Treads Light Treads Utility Large Storage Unit Device Improved Terrain Scanner Storage Large Storage Unit Processor Improved Targeting Computer Hackware System Shield Protection Insulated Plating Weapon Assault Cannon Ballistic Gun Light Assault Rifle Ballistic Cannon Assault Cannon Launcher Rocket Launcher Build | -11 -10 -10 -9 -9 -9 ------- Run | Yrd Mat Min Mat Sto Gar Slots Evolved 2 | . . . 2 . . Power . | . . . . . . Propulsion . | . . . . . . Utility 2 | . . . 2 . . Weapon . | . . . . . . Parts Attached 44 | 7 4 6 19 3 5 Power 8 | 1 1 1 2 . 3 Engine 4 | 1 . . 1 . 2 Core 4 | . 1 1 1 . 1 Reactor . | . . . . . . Propulsion 11 | 2 1 2 4 . 2 Treads 11 | 2 1 2 4 . 2 Leg . | . . . . . . Wheel . | . . . . . . Hover . | . . . . . . Flight . | . . . . . . Utility 12 | 2 2 . 6 2 . Device 2 | 1 . . 1 . . Storage 3 | 1 1 . 1 . . Processor 3 | . 1 . 2 . . Hackware 3 | . . . 1 2 . Protection 1 | . . . 1 . . Artifact . | . . . . . . Weapon 13 | 2 . 3 7 1 . Energy Gun . | . . . . . . Energy Cannon . | . . . . . . Ballistic Gun 3 | 2 . 1 . . . Ballistic Cannon 5 | . . 1 4 . . Launcher 5 | . . 1 3 1 . Special Weapon . | . . . . . . Impact Weapon . | . . . . . . Slashing Weapon . | . . . . . . Piercing Weapon . | . . . . . . Special Melee Weapon . | . . . . . . Unidentified Prototypes 2 | . . . 2 . . Parts Lost 6 | . 1 3 . . 2 Power 4 | . 1 1 . . 2 Propulsion 2 | . . 2 . . . Utility . | . . . . . . Weapon . | . . . . . . Highest Loss Streak 3 | . 1 3 . . 1 To Critical Strikes . | . . . . . . Average Backups 13 | 1 10 14 14 15 15 Power . | . . . . . . Propulsion 2 | . 1 1 2 3 3 Utility 6 | . 5 7 6 7 6 Weapon 4 | . 2 4 4 5 5 Tool/Special . | . . . . . . Unused Backups 26 | . . 4 11 . 11 Power 2 | . . . 2 . . Propulsion 4 | . . . 1 . 3 Utility 14 | . . 3 5 . 6 Weapon 6 | . . 1 3 . 2 Tool/Special . | . . . . . . Average Slot Usage (%) 98 | . 100 99 98 98 97 Engine 3 | . 8 . 3 . 4 Core 7 | . 5 13 7 11 3 Treads 23 | . 28 28 21 21 22 Storage 12 | . 14 14 11 11 11 Processor 12 | . 11 14 11 13 11 Hackware 9 | . . . 10 19 22 Protection 4 | . . . 9 . . Ballistic Gun 9 | . 28 26 . . . Ballistic Cannon 14 | . . 1 20 20 21 Peak Build Rating 27 | 9 11 17 27 26 26 Average Rating 19 | 7 9 13 24 25 23 On Entrance 14 | . 9 11 15 25 26 Avg Prop Armor Cover (%) . | . . . . . . Naked Turns . | . . . . . . Heaviest Build 41 | 12 28 33 41 40 39 Greatest Support 45 | 40 40 42 45 45 45 Greatest Overweight (x) 1 | 1 . . 1 . . Average Overweight (x) . | . . . . . . Largest Inventory Capacity 15 | 8 15 15 15 15 15 Average Capacity 14 | 7 13 15 15 15 15 Most Carried 15 | 3 15 15 15 15 15 Average Carried 13 | 1 10 14 14 14 14 Final Capacity 15 | 8 15 15 15 15 15 Final Carried 15 | 3 15 15 15 15 15 Class Distribution -------------------- 77% | Mutant 12% | Hacker-Mutant 5% | Scavenger-Mutant 5% | Commander-Mutant Dominant Class ---------------- Mutant | -10/Materials Mutant | -10/Mines Mutant | -9/Materials Commander-Mutant | -9/Storage Hacker-Mutant | -9/Garrison Resources | -11 -10 -10 -9 -9 -9 ----------- Run | Yrd Mat Min Mat Sto Gar Matter Collected 4294 | 388 370 518 1292 1075 651 Remotely . | . . . . . . Salvage Created 4263 | 161 602 171 1483 1174 672 Parts 264 | 11 37 14 82 73 47 Haulers Intercepted 10 | . 1 . 5 4 . Recyclers Shooed 8 | . . 2 4 2 . Parts Field Recycled . | . . . . . . Retrieved Matter . | . . . . . . Parts Self-Destructed . | . . . . . . Prevented . | . . . . . . Parts Restored . | . . . . . . Kills | -11 -10 -10 -9 -9 -9 ------- Run | Yrd Mat Min Mat Sto Gar Combat Hostiles Destroyed 102 | . 13 6 28 30 25 Guns 17 | . 13 4 . . . Cannons 56 | . . 1 21 15 19 AOE 29 | . . 1 7 15 6 Classes Destroyed 16 | 3 4 1 4 2 2 Worker 8 | 2 1 1 2 2 . Builder 1 | . . . 1 . . Tunneler 4 | 3 . 1 . . . Hauler 10 | . 1 . 5 4 . Recycler 16 | 1 . . 8 7 . Operator 4 | . . . 2 2 . Watcher 10 | . 3 . 5 2 . Swarmer 22 | . 3 1 9 6 3 Cutter 1 | . . . . . 1 Grunt 50 | . 10 4 10 14 12 Brawler 4 | . . . 1 2 1 Duelist 3 | . . . . 2 1 Protector 2 | . . . . 2 . Sentry 17 | . . . 8 4 5 Demolisher 1 | . . 1 . . . Programmer 2 | . . . . . 2 Best Kill Streak 15 | 3 5 2 6 15 6 Combat Bots Only 10 | . 5 2 6 10 6 Max Kills in Single Turn 4 | 1 1 1 3 4 3 Gunslinging . | . . . . . . Exploded 3 | . . 1 3 3 2 Melee . | . . . . . . Uniques/NPCs Destroyed . | . . . . . . Combat | -11 -10 -10 -9 -9 -9 -------- Run | Yrd Mat Min Mat Sto Gar Hostile Shots Fired 299 | . 51 27 83 31 107 Missed 82 | . 10 10 20 7 35 Hits 217 | . 41 17 63 24 72 Melee 6 | . . . . 4 2 Projectile 211 | . 41 17 63 20 70 AOE 10 | . . 9 . . 1 Critical Strikes 7 | . 2 . 3 . 2 Damage Taken 3052 | . 483 497 779 377 916 Core 546 | . 65 80 133 92 176 Absorbed by Shields 25 | . . . . . 25 Regen/Repaired (Parts) 1172 | . 115 . 762 295 . Core Remaining (%) 71 | 100 . 42 . . . Volleys Fired 312 | 17 48 36 80 79 52 Largest 2 | 2 2 2 2 2 2 Hottest 77 | 40 40 60 77 77 77 Shots Fired 606 | 34 96 72 158 153 93 Gun 188 | 34 96 58 . . . Cannon 390 | . . 10 153 141 86 Launcher 28 | . . 4 5 12 7 Special . | . . . . . . Kinetic 578 | 34 96 68 153 141 86 Thermal . | . . . . . . Explosive 28 | . . 4 5 12 7 Electromagnetic . | . . . . . . Robot Hit Streak 19 | 6 11 10 19 13 6 Robot Miss Streak 5 | 3 4 5 5 4 4 Penetration Max . | . . . . . . Secondary Targets 3 | . 3 . . . . Max Gunslinging Chain 1 | . 1 . . . . Shots Hit Robots 335 | 22 64 41 90 79 39 Core Hits 208 | 9 31 18 53 64 33 Critical Kills 5 | . . . . 3 2 Critical Parts Destroyed 7 | . 2 . . 3 2 Critical Strikes 20 | . 2 . 4 8 6 Destroy 13 | . 2 . . 6 5 Blast 7 | . . . 4 2 1 Melee Attacks . | . . . . . . Impact . | . . . . . . Slashing . | . . . . . . Piercing . | . . . . . . Sneak Attacks . | . . . . . . Combat Hostiles . | . . . . . . Follow-up Attacks . | . . . . . . Damage Inflicted 10325 | 237 656 767 2989 3910 1766 Guns 1210 | 237 656 317 . . . Cannons 5967 | . . 193 2417 2085 1272 Explosions 3146 | . . 257 572 1823 494 Melee . | . . . . . . Ramming 2 | . . . . 2 . Kinetic 7177 | 237 656 510 2417 2085 1272 Thermal . | . . . . . . Explosive 3146 | . . 257 572 1823 494 Electromagnetic . | . . . . . . Impact . | . . . . . . Slashing . | . . . . . . Piercing . | . . . . . . Highest Corruption 4 | . . . . . 4 Average Corruption 2 | . . . . . 2 Corruption Purged . | . . . . . . Corruption Blocked . | . . . . . . Effects 5 | . . . . . 5 Message Errors 1 | . . . . . 1 Matter Fused 1 | . . . . . 1 Data Loss (minor) 2 | . . . . . 2 Misfires 1 | . . . . . 1 Overload Shots . | . . . . . . Overflow Damage 149 | . . 4 91 49 5 Projectiles 94 | . . 4 51 39 . Explosions 55 | . . . 40 10 5 Melee . | . . . . . . Knockbacks 37 | . . 2 20 12 3 Impact . | . . . . . . Kinetic 35 | . . 2 19 11 3 Secondary 2 | . . . 1 1 . Self-Inflicted Damage 70 | . . 11 7 21 31 Shots 4 | . . 1 1 1 1 Rammed 1 | . . . . 1 . Targets Rammed 1 | . . . . 1 . Kicked . | . . . . . . Crushed . | . . . . . . Highest Temperature 183 | . 27 30 183 84 60 Average Temperature 27 | . 8 6 39 22 21 Received Heat Transfer 864 | . 279 51 288 36 210 Siege Activations . | . . . . . . Martial Activations . | . . . . . . Shielding Activations . | . . . . . . Robots Disrupted . | . . . . . . Combat Hostiles . | . . . . . . Robots Corrupted . | . . . . . . Combat Hostiles . | . . . . . . Parts Fried . | . . . . . . Impact Corruptions . | . . . . . . Robots Melted . | . . . . . . Combat Hostiles . | . . . . . . Parts Melted . | . . . . . . Heat Transferred . | . . . . . . Parts Sabotaged . | . . . . . . Parts Stolen . | . . . . . . Parts Stripped . | . . . . . . Power Chain Reactions . | . . . . . . Alert | -11 -10 -10 -9 -9 -9 ------- Run | Yrd Mat Min Mat Sto Gar Maximum Alert Level 4 | . . . 2 3 4 Low Security (%) 61 | 100 100 100 64 10 . Level 1 16 | . . . 30 34 . Level 2 7 | . . . 4 20 27 Level 3 11 | . . . . 34 56 Level 4 2 | . . . . . 15 Level 5 . | . . . . . . High Security . | . . . . . . Max Security . | . . . . . . Peak Influence 1370 | 10 161 63 410 1098 1370 Initial 460 | . . 42 2 169 460 Average 250 | 1 47 10 167 485 858 Influence Increases 4209 | 30 459 171 1120 1499 930 Destroy 0b10 Robot/C 2180 | . 260 120 560 740 500 Destroy 0b10 Robot/NC 275 | 30 25 10 115 95 . Destroy Leader 490 | . 68 20 190 182 30 Allied During Kill 179 | . . . . 179 . Successful Hack 123 | . 46 . 47 12 18 Select Force Hacks 150 | . 60 . 90 . . Disable Machine 195 | . . . 45 150 . Anti-Garrison Action 300 | . . . . . 300 Destroy Structure 242 | . . 21 58 126 37 Lose Combat Pursuer 75 | . . . 15 15 45 Influence Decreases 2839 | 30 350 272 725 1194 268 Entered New Map 555 | . . 67 6 234 248 Time Decay 1568 | 30 340 179 549 470 . Lost Part 56 | . 10 26 . . 20 Lost Ally 190 | . . . . 190 . Purge Threat 470 | . . . 170 300 . Squads Dispatched 18 | . 3 1 5 9 . Investigation 10 | . 3 1 4 2 . Extermination . | . . . . . . Reinforcement 3 | . . . 1 2 . Assault 2 | . . . . 2 . Garrison 3 | . . . . 3 . Intercept . | . . . . . . Searches Triggered . | . . . . . . Construction Impeded . | . . . . . . Haulers Reinforced . | . . . . . . Active Scanning Responses . | . . . . . . Cargo Convoy Interrupts . | . . . . . . Stealth | -11 -10 -10 -9 -9 -9 --------- Run | Yrd Mat Min Mat Sto Gar Distress Signals 9 | . . . 5 4 . Communications Jammed . | . . . . . . Distress Signals . | . . . . . . Times Spotted 140 | . 17 7 40 47 29 Peak Tracking Total 10 | . 6 3 5 10 6 Tactical Retreats 4 | . . . 1 1 2 Traps | -11 -10 -10 -9 -9 -9 ------- Run | Yrd Mat Min Mat Sto Gar Traps Triggered 8 | . 1 . 3 2 2 Indirectly . | . . . . . . Trap Hack Attempts . | . . . . . . Triggered . | . . . . . . Disarmed . | . . . . . . Reprogrammed 2 | . . . 2 . . Reused . | . . . . . . Traps Extracted . | . . . . . . Installed . | . . . . . . Triggered . | . . . . . . Machines | -11 -10 -10 -9 -9 -9 ---------- Run | Yrd Mat Min Mat Sto Gar Machines Disabled 21 | . 1 . 3 10 7 Max in Single Turn 2 | . 1 . 1 2 1 Garrison Relay 7 | . . . . . 7 Machines Repaired . | . . . . . . Machines Dismantled . | . . . . . . Machines Sabotaged . | . . . . . . Overloaded Fab Kills . | . . . . . . Hacking | -11 -10 -10 -9 -9 -9 --------- Run | Yrd Mat Min Mat Sto Gar Machines Accessed 42 | . 9 2 17 12 2 Terminals 28 | . 6 . 11 9 2 Fabricators . | . . . . . . Repair Stations 4 | . 1 . 2 1 . Recycling Units 5 | . 2 . 2 1 . Scanalyzers 2 | . . . 2 . . Garrison Access 1 | . . . . 1 . Total Hacks 185 | . 32 2 108 39 4 Successful 132 | . 21 2 81 25 3 Failed 51 | . 10 . 26 14 1 Catastrophic 5 | . . . 5 . . Database Lockouts 2 | . 1 . 1 . . Manual 109 | . 29 . 55 24 1 Terminals 111 | . 22 . 58 27 4 Fabricators . | . . . . . . Repair Stations 38 | . 3 . 29 6 . Recycling Units 16 | . 7 . 6 3 . Scanalyzers 15 | . . . 15 . . Garrison Access 3 | . . . . 3 . Terminal Hacks 29 | . 3 2 15 7 2 Robot Schematic 1 | . . . . 1 . Robot Analysis 9 | . 1 . 7 1 . Prototype ID Bank 2 | . . . 1 1 . Open Door 4 | . . 2 . 2 . Emergency Access Points 1 | . . . . . 1 Terminal Index 2 | . 1 . 1 . . Alert Level 1 | . . . 1 . . Unreport Threat 4 | . . . 2 2 . Locate Traps 3 | . 1 . 2 . . Reprogram Traps 1 | . . . 1 . . Patrol Navigation 1 | . . . . . 1 Fabricator Hacks . | . . . . . . Repair Station Hacks 36 | . 2 . 28 6 . Scan Component 18 | . 1 . 14 3 . Repair 18 | . 1 . 14 3 . Recycling Unit Hacks 1 | . . . 1 . . Retrieve Components 1 | . . . 1 . . Scanalyzer 13 | . . . 13 . . Insert Component 6 | . . . 6 . . Analyze 7 | . . . 7 . . Garrison Access Hacks 1 | . . . . 1 . Unlock Access 1 | . . . . 1 . Unauthorized Hacks 52 | . 16 . 24 11 1 Terminals 38 | . 9 . 19 9 1 Assimilate 1 | . . . 1 . . Botnet 17 | . 3 . 9 4 1 Operators 2 | . 1 . 1 . . Skim 18 | . 5 . 8 5 . Fabricators . | . . . . . . Repair Stations . | . . . . . . Recycling Units 13 | . 7 . 4 2 . Reject 3 | . 2 . 1 . . Recyclers 2 | . 1 . . 1 . Mask 4 | . 2 . 1 1 . Tunnel 4 | . 2 . 2 . . Scanalyzers 1 | . . . 1 . . Extract 1 | . . . 1 . . Garrison Access . | . . . . . . Data Cores Recovered . | . . . . . . Used . | . . . . . . Hacking Detections 32 | . 8 . 14 9 1 Full Trace Events 2 | . . . 1 1 . Feedback Events . | . . . . . . Feedback Blocked . | . . . . . . Robot Schematics Acquired 1 | . . . . 1 . Robots Built . | . . . . . . Authchips . | . . . . . . Time . | . . . . . . Total Robot Build Rating . | . . . . . . Part Schematics Acquired 7 | . . . 7 . . Parts Built . | . . . . . . Authchips . | . . . . . . Time . | . . . . . . Total Part Build Rating . | . . . . . . Part Studies Acquired . | . . . . . . Parts Repaired 18 | . 1 . 14 3 . Time 654 | . 26 . 514 114 . Parts Recycled . | . . . . . . Recycled Matter . | . . . . . . Retrieved Matter . | . . . . . . Retrieved Components 10 | . . . 10 . . Parts Scanalyzed 6 | . . . 6 . . Part Schematics Acquired 6 | . . . 6 . . Parts Damaged . | . . . . . . Bothacking | -11 -10 -10 -9 -9 -9 ------------ Run | Yrd Mat Min Mat Sto Gar Used RIF Installer . | . . . . . . Robots Hacked . | . . . . . . Non-combat . | . . . . . . Combat . | . . . . . . Robot Hacks Applied . | . . . . . . Relay Couplers Released 28 | . . . . . 28 Machine Destruction 28 | . . . . . 28 Fabnet Peak Effective % . | . . . . . . Robots Rewired . | . . . . . . Allies Hacked . | . . . . . . Hacks Repelled . | . . . . . . Allies | -11 -10 -10 -9 -9 -9 -------- Run | Yrd Mat Min Mat Sto Gar Total Allies 11 | . . . 1 10 . Largest Group 10 | . . . 1 10 . Highest-Rated Group 88 | . . . 10 88 . Highest-Rated Ally 16 | . . . 10 16 . Total Orders 2 | . . . 2 . . STAY 1 | . . . 1 . . FOLLOW 1 | . . . 1 . . Ally Attacks 96 | . . . . 96 . Total Damage 906 | . . . . 906 . Kills 9 | . . . . 9 . Allies Corrupted . | . . . . . . Allies Melted . | . . . . . . Intel | -11 -10 -10 -9 -9 -9 ------- Run | Yrd Mat Min Mat Sto Gar Active Infowar (turns) 340 | 89 251 . . . . Terrain 340 | 89 251 . . . . Robot Analysis Total 9 | . 1 . 7 1 . Derelict Logs Recovered 2 | . . 2 . . . Drone Launches . | . . . . . . Drone Recoveries . | . . . . . . Exploration | -11 -10 -10 -9 -9 -9 ------------- Run | Yrd Mat Min Mat Sto Gar Turns Passed 8746 | 149 1572 1294 3436 1189 1106 Spaces Moved 4474 | 60 776 747 1757 533 601 Core 8 | 8 . . . . . Treads 4466 | 52 776 747 1757 533 601 Legs . | . . . . . . Wheels . | . . . . . . Hover . | . . . . . . Flight . | . . . . . . Fastest Speed 50 | 50 160 152 152 152 152 Average Speed 154 | 148 160 155 152 152 155 Slowest Speed 225 | 160 160 160 225 152 160 Overloaded Moves . | . . . . . . Propulsion Burnouts . | . . . . . . Robots Hopped 1 | . . . 1 . . Potential Cave-ins . | . . . . . . Cave-ins Triggered . | . . . . . . Exploration Rate (%) 73 | 4 95 94 98 84 66 Regions Visited 5 Branch Regions 2 Pre-discovered Areas 8 | . 3 . 5 . . Known Exits Taken 4 | . 1 1 1 1 . Unknown Exits Taken 1 | 1 . . . . . Scrap Searched 3 | . . 3 . . . Spaces Dug 2 | . . . . . 2 Terrain Destroyed 230 | . . 26 51 125 28 Melee . | . . . . . . Projectile 72 | . . 3 24 35 10 AOE 158 | . . 23 27 90 18 Terrain Rammed . | . . . . . . Walls Destroyed . | . . . . . . Machines Disabled . | . . . . . . Actions | -11 -10 -10 -9 -9 -9 --------- Run | Yrd Mat Min Mat Sto Gar Total 5702 | 86 1020 813 2352 752 679 Wait 724 | . 178 3 425 116 2 Move 4467 | 59 775 746 1754 532 601 Hop 1 | . . . 1 . . Pick Up 58 | 3 14 9 26 2 4 Fast Attach 32 | 7 . 1 16 6 2 Attach 11 | . 2 2 6 1 . Detach 3 | . . . 1 2 . Swap 53 | . 2 8 20 12 11 Drop 39 | . 1 8 23 1 6 Fire 312 | 17 48 36 80 79 52 Melee . | . . . . . . Ram . | . . . . . . Kick . | . . . . . . Crush 1 | . . . . 1 . Escape Stasis 1 | . . . . . 1 Rewire . | . . . . . . Trap . | . . . . . . Miscellaneous . | . . . . . . Route ------- -11/Scrapyard -10/Materials (discovered 6 exits: *Mat x3 / *Min x2 / Sub) -10/Mines (discovered 3 exits: *Mat x2 / *Sub) -9/Materials (discovered 5 exits: *Mat x3 / [*Min] / *Sto) -9/Storage (discovered 3 exits: *Mat / Rec / Gar) -9/Garrison (discovered 3 exits: *Rec x3) History --------- Turn | Location | Event 4 | -11/Scrapyard | Discovered new exit (range 16) 150 | -11/Scrapyard | Entered Materials 215 | -10/Materials | Discovered new exit (range 6) 303 | -10/Materials | Build established: Mutant 490 | -10/Materials | Discovered new exit (range 8) 581 | -10/Materials | Discovered new exit (range 13) 742 | -10/Materials | Discovered new exit (range 16) 917 | -10/Materials | Discovered new exit (range 5) 1202 | -10/Materials | Repaired Lgt. Treads 1255 | -10/Materials | Central database locked down 1315 | -10/Materials | Learned location of 1 exit from Storage 1383 | -10/Materials | Identified exit to Subcaves 1383 | -10/Materials | Learned location of 2 exits from Materials 1440 | -10/Materials | Identified exit to Mines 1489 | -10/Materials | Learned Storage security intel 1557 | -10/Materials | Learned location of Mines (-8) 1595 | -10/Materials | Learned 2 Storage zone layouts 1643 | -10/Materials | Learned 2 Storage zone layouts 1700 | -10/Materials | Learned location of 2 exits from Mines 1722 | -10/Materials | Entered Mines 1722 | -10/Mines | Learned location of 1 exit from Materials 1723 | -10/Mines | Identified exit to Materials 1768 | -10/Mines | Met a Derelict bent on vengeance 1812 | -10/Mines | A weapon hastily lodged in a ceiling crevice suddenly fell to the ground 1921 | -10/Mines | Assembled infested the area 2104 | -10/Mines | Found the Drone Emporium 2114 | -10/Mines | Found Prototype Device 2238 | -10/Mines | Met a Derelict shopkeep closing up shop 2386 | -10/Mines | Lost 3 parts (1p2n) 2625 | -10/Mines | Core integrity fell below 50% 3016 | -10/Mines | Entered Materials 3016 | -9/Materials | Evolved 2 slots: Utility x2 3016 | -9/Materials | Identified Decoy Drone Bay 3017 | -9/Materials | Identified exit to Materials 3017 | -9/Materials | Identified exit to Storage 3370 | -9/Materials | Repaired Lgt. Treads? 3383 | -9/Materials | Central database locked down 3412 | -9/Materials | Discovered new exit (range 13) 3448 | -9/Materials | Learned 2 Storage zone layouts 3495 | -9/Materials | Repaired Lgt. Nuclear Core? 3504 | -9/Materials | Learned location of Recycling (-9) 3542 | -9/Materials | Repaired Lgt. Treads? 3583 | -9/Materials | Learned location of Zion (-6) 3605 | -9/Materials | Learned location of 3 exits from Materials 3618 | -9/Materials | Learned location of 3 exits from Materials 3621 | -9/Materials | Learned location of 1 exit from Recycling 3654 | -9/Materials | Loaded intel: 12 terminal locations 4797 | -9/Materials | Repaired Insulated Plating 4836 | -9/Materials | Repaired Assault Cannon 4875 | -9/Materials | Repaired Adv. Treads 4915 | -9/Materials | Repaired Assault Cannon 5023 | -9/Materials | Repaired Slug Cannon 5492 | -9/Materials | Repaired Assault Cannon 5525 | -9/Materials | Repaired Imp. Targeting Computer 5570 | -9/Materials | Repaired Slug Cannon 5614 | -9/Materials | Repaired Insulated Plating 6243 | -9/Materials | Repaired Lgt. Nuclear Core 6283 | -9/Materials | Repaired Insulated Plating 6452 | -9/Materials | Entered Storage 6452 | -9/Storage | Accompanied by 1 ally 6453 | -9/Storage | Identified exit to Recycling 6773 | -9/Storage | Assisted by bots powering up and referring to "LRC-V3" 7069 | -9/Storage | Build established: Commander-Mutant 7209 | -9/Storage | Garrison activated, responded to threat 7230 | -9/Storage | Destroyed 7 combat bots 7243 | -9/Storage | Lost 4 allies 7252 | -9/Storage | First assault squad dispatched 7274 | -9/Storage | Core integrity fell below 50% 7335 | -9/Storage | Destroyed 10 combat bots 7362 | -9/Storage | Identified exit to Garrison 7472 | -9/Storage | Repaired Slug Cannon 7506 | -9/Storage | Repaired Imp. Treads 7545 | -9/Storage | Repaired Assault Cannon 7641 | -9/Storage | Entered Garrison 7699 | -9/Garrison | Build established: Hacker-Mutant 7725 | -9/Garrison | Triggered checkpoint 7833 | -9/Garrison | Discovered exit to Recycling (range 12) 7879 | -9/Garrison | Triggered checkpoint 7927 | -9/Garrison | Garrison Relay disabled 8166 | -9/Garrison | Triggered checkpoint 8283 | -9/Garrison | Triggered checkpoint 8314 | -9/Garrison | Garrison Relay disabled 8350 | -9/Garrison | Discovered exit to Recycling (range 14) 8447 | -9/Garrison | Triggered checkpoint 8518 | -9/Garrison | Build established: Scavenger-Mutant 8541 | -9/Garrison | Discovered exit to Recycling (range 10) 8564 | -9/Garrison | Core integrity fell below 20% 8604 | -9/Garrison | Garrison Relay disabled 8613 | -9/Garrison | Garrison Relay disabled 8645 | -9/Garrison | Garrison Relay disabled 8743 | -9/Garrison | Triggered checkpoint 8747 | -9/Garrison | Destroyed by G-34 Mercenary with Small Laser Last Messages --------------- 08623_ Acquired Gravmag System. 08626_ Dropped Cooling System. 08626_ Acquired Gravmag System. 08629_ Acquired Mic. Nuclear Core. 08630_ Acquired 9 matter. 08632_ Acquired 4 matter. 08637_ Acquired 14 matter. 08637_ Triggered Alarm Trap. 08637_ An alarm sounds. 08645_ Garrison Relay disabled. 08645_ Relay Coupler [Swarmer] tumbles out of relay unit. 08645_ Relay Coupler [NC] tumbles out of relay unit. 08645_ Relay Coupler [Sentry] tumbles out of relay unit. 08651_ Acquired 6 matter. 08675_ System corrupted: Matter fused (-10). 08743_ Beams of light sweep through the air. An alarm sounds. 08746_ G-34 Mercenary destroyed. Map ----- +----------------------------------------------------+ | ?????????????????????????????????????????????????? | | ?????????????????????????????????????????????????? | | ?????????????????????????????????????????????????? | | ?????????????????????????????????????????????????? | | ?????????????????????????????????????????????????? | | ?????????????????????????????????????????????????? | | ?????????????????????????????????????????????????? | | ?????????????????????????????????????????????????? | | ?????????????????????????????????????????????????? | | ?????????????????????????????????????????????????? | | ?????????????????????????????????????????????????? | | ?????????????????????????????????????????????????? | | ?????????????????????????????????????????????????? | | ?????????????????????????????????????????????????? | | ???????????????????????####??????????????????????? | | ???????????????????????# +???????+??????????????? | | #####??????????????????# #+???????????????????+?? | | """ #???######?????????# #??????????????????????? | | !"##??# #?????????# #??????????????????????? | | !!! #??? > #??????##?# #??????????????????????? | | "# ####?? #??????# ## ^#+#??????????????? ????? | | ! %= #### #??????# g #??????????????? ????? | | %""## #??????? !% ???????????????? ????? | | != ! = ! #????????!g ????????????????# ????? | | """ ####### #?????????# ##???????????????# ????? | | ! "#???# #?????????# @ #???????????????# ????? | | !!!"###???# ###########^^###########??????# ????? | | " ""#?????# #??????# ##### | | #####?????# +??????# | | ??????????############## ####+### #??????# | | ???????????????????????# #??????# #??????# #### | | ???????????????????????# #??????# #??????# #??? | | ???????????????????????# #??????# #??????# +??? | | ???????????????????????# #??????# #??????# #??? | | ???????????????????????# +??????+ #??+???# #??? | | ???????????????????????# #??????# #??????# #?## | | ??????????????????????## #?????## ##""""## ### | | ??????????????????????#T ###+### ^ # | | ??????????????????????## | | ???????????????????????# ^ | | ???????????????????????##+####### ## ## | | ????????????????????????# #???### ## ## = ### | | ????????????????????????# #####[%* = *# | | ????????????????????????# =[%= [ # | | ????????????????????????#######! % # | | ??????????????????????????????+% %* # | | ??????????????????????????????### # # =[ ### | | ????????????????????????????????# # %### | | ????????????????????????????????+ =% **=%*= | | ????????????????????????????????+ [%==[=! | +----------------------------------------------------+ Best States ------------- Heat Dissipation 28 Energy Generation 15 Energy Capacity 280 Matter Stores 300 Matter Capacity 300 Sight Range 16 Terrain Scan Range 16 Terrain Scan Density 10 Armor Coverage 150 Resistance: EM 15 Evasion (%) 40 Targeting Accuracy 12 Recoil Reduction 2 Offensive Hacking 20 Defensive Hacking 10 Item Schematics ----------------- Slug Cannon | -9/Materials | Scanalyzed Recoil Stabilizer | -9/Materials | Scanalyzed Weight Redist. System | -9/Materials | Extracted Imp. Targeting Computer | -9/Materials | Scanalyzed Cooling System | -9/Materials | Scanalyzed Core Shielding | -9/Materials | Scanalyzed Hvy. Ion Engine | -9/Materials | Scanalyzed Robot Schematics ------------------ O-16 Technician | -9/Storage | Hacked Fabricated ------------ Nothing Repaired ---------- Lgt. Treads | 17% | -10/Materials Lgt. Treads | 5% | -9/Materials Lgt. Nuclear Core | 36% | -9/Materials Lgt. Treads | 60% | -9/Materials Insulated Plating | 15% | -9/Materials Assault Cannon | 18% | -9/Materials Adv. Treads | 31% | -9/Materials Assault Cannon | 38% | -9/Materials Slug Cannon | 90% | -9/Materials Assault Cannon | 92% | -9/Materials Imp. Targeting Computer | 80% | -9/Materials Slug Cannon | 90% | -9/Materials Insulated Plating | 81% | -9/Materials Lgt. Nuclear Core | 64% | -9/Materials Insulated Plating | 81% | -9/Materials Slug Cannon | 33% | -9/Storage Imp. Treads | 38% | -9/Storage Assault Cannon | 40% | -9/Storage Studied --------- None Alien Tech Used ----------------- None Achievements -------------- None Challenges ------------ None Game ------ Seed HeatCoreLink Manual? 0 Play Time 00:52:59 Cumulative 628.3 hours Start 2025.11.20 @ 01:27:17 End 2025.11.20 @ 02:18:47 Sessions 1 Manual Loads 0 Difficulty Rogue Special Mode None Game No. 315 Rogue 315 Adventurer 0 Explorer 0 Win Type - Total 7 Types 3/0/2/1/0/0/0/0/0/1 Lore% 87 Gallery% 78 Achievement% 47 Wizard Run 0 Options --------- Layout 2 ASCII 0 Keyboard 1 Movement Vi Keybinds 0 Fullscreen 1 Font 16/SmallcapsGlow Map View 55x47 Zoom Use 0% Tactical HUD 1 Map Filters NONE Filters NONE Steam 0 RUN: 59fdf40c-bbd8-4097-a9d8-09b8b528ab0c